bitfinex-derivatives/quotes_ETHF0:USTF0_20260312
["timestamp","ask_amount","ask_price","bid_price","bid_amount"]
[1773322524531,0.72329719,2073.0,2071.9,0.68369784]
[1773322524735,0.72329719,2072.8,2071.1,0.68369784]
[1773322524937,0.24117,2072.9,2071.3,0.68369784]
[1773322524938,0.72329719,2072.6,2071.3,0.68369784]
[1773322525239,0.72329719,2072.4,2070.6,0.68369784]
[1773322525539,5.934,2072.5,2070.6,0.68812461]
[1773322525540,0.72329719,2072.2,2070.6,0.68812461]
[1773322525738,0.7272338,2072.2,2070.6,0.68812461]
[1773322526335,0.72329719,2072.0,2070.6,0.68812461]
[1773322527439,0.72329719,2071.8,2070.6,0.68812461]
[1773322528043,0.72329719,2071.6,2070.6,0.00442677]
[1773322528438,0.72329719,2071.4,2070.6,0.00442677]
[1773322528643,0.72329719,2071.4,2070.0,0.68369784]
[1773322529039,0.24135,2071.3,2070.0,0.68369784]
[1773322529238,0.72329719,2071.0,2069.3,0.68369784]
[1773322529437,0.72329719,2070.6,2069.3,0.68369784]
[1773322529641,0.72329719,2070.4,2069.3,0.00620142]
[1773322530049,0.72329719,2070.2,2069.3,0.00620142]
[1773322530743,0.72329719,2070.2,2068.6,0.68369784]
[1773322531339,0.72329719,2070.0,2068.6,0.68369784]
[1773322531736,0.24149,2070.1,2068.0,48.387]
[1773322531737,0.72329719,2069.6,2068.0,0.68369784]
[1773322532042,0.72329719,2069.4,2068.0,0.68369784]
[1773322532243,0.72329719,2069.2,2067.4,0.68369784]
[1773322532438,0.72329719,2069.0,2067.4,0.68369784]
[1773322533139,0.72329719,2068.8,2067.4,0.68369784]
[1773322533541,0.72931634,2068.8,2067.4,0.68931072]
[1773322533843,0.24166,2068.7,2067.4,0.00561288]
[1773322534040,0.72329719,2068.6,2067.4,0.00561288]
[1773322534242,0.72329719,2068.4,2066.8,0.68369784]
[1773322534640,0.72329719,2068.4,2066.5,0.68369784]
[1773322535145,0.72329719,2068.4,2066.7,0.68369784]
[1773322535343,0.72329719,2068.2,2066.7,0.68807224]
[1773322535544,0.72329719,2068.0,2066.7,0.0043744]
[1773322535951,0.72329719,2067.6,2066.1,0.68369784]
[1773322536245,0.72329719,2067.5,2066.1,0.68369784]
[1773322536441,0.72329719,2067.5,2065.5,0.68369784]
[1773322536643,0.72329719,2067.3,2065.5,0.68369784]
[1773322536842,0.24183,2067.2,2065.5,0.68943422]
[1773322537043,0.72329719,2067.1,2065.5,0.68943422]
[1773322537446,0.72329719,2066.9,2065.5,0.00573638]
[1773322537750,0.72329719,2066.9,2065.5,0.68943422]
[1773322538444,0.72329719,2067.2,2065.9,0.68369784]
[1773322538646,0.72329719,2067.2,2066.0,0.24197]
[1773322538844,0.72329719,2067.2,2066.1,0.68369784]
[1773322539949,0.72329719,2067.2,2065.8,0.68369784]
[1773322540151,0.72329719,2067.2,2066.1,0.24196]
[1773322540345,0.72329719,2067.2,2065.5,0.00573638]
[1773322540540,0.72329719,2067.0,2065.5,0.00573638]
[1773322540742,0.72329719,2066.8,2065.5,0.00573638]
[1773322540941,0.72329719,2066.8,2065.6,6.87941784]
[1773322541147,0.72329719,2066.8,2065.8,0.68369784]
[1773322541546,0.72329719,2066.8,2065.8,0.92955784]
[1773322541748,0.72329719,2067.1,2066.0,0.68369784]
[1773322542251,0.72329719,2067.1,2066.2,0.68369784]
[1773322543445,1.2866208,2067.5,2066.1,0.24196]
[1773322543446,0.72336906,2067.4,2066.5,0.94431274]
[1773322543641,0.72336906,2067.4,2066.3,0.70240274]
[1773322543843,0.72336906,2067.4,2066.0,0.70240274]
[1773322544050,0.72336906,2067.2,2065.6,0.94798274]
[1773322544245,0.72336906,2067.2,2065.7,0.97225274]
[1773322544550,0.72735568,2067.2,2066.0,1.21432274]
[1773322544742,0.72735568,2067.2,2066.0,1.19111274]
[1773322544941,0.72735568,2067.2,2065.5,5.95978638]
[1773322544942,0.72735568,2067.2,2065.6,0.94678274]
[1773322545246,0.72735568,2067.2,2065.7,0.94472274]
[1773322545441,0.72735568,2067.2,2065.7,0.95366274]
[1773322545648,0.72735568,2067.2,2066.0,0.96576274]
[1773322545848,0.72735568,2067.2,2066.2,0.96638274]
[1773322546044,0.72735568,2067.2,2066.2,0.94836274]
[1773322546249,8e-07,2067.5,2067.0,0.70240274]
[1773322546447,8e-07,2067.5,2066.7,0.70240274]
[1773322546646,8e-07,2067.5,2066.7,0.95218274]
[1773322546847,0.72336906,2067.8,2066.7,0.70240274]
[1773322547050,0.72336906,2068.6,2066.9,0.70240274]
[1773322547253,0.72899381,2068.6,2067.1,0.70240274]
[1773322547454,0.72899381,2068.6,2067.2,0.70240274]
[1773322547750,0.72899381,2068.6,2067.0,0.24186]
[1773322548048,0.72899381,2068.6,2067.6,0.70240274]
[1773322548250,0.72899381,2068.6,2067.6,0.94502274]
[1773322548447,0.72899381,2068.6,2067.7,0.70240274]
[1773322548749,0.72899381,2068.6,2067.6,0.70240274]
[1773322548943,0.72899381,2068.6,2067.3,0.70240274]
[1773322549147,0.72899381,2068.6,2067.3,0.94786274]
[1773322549542,0.72899381,2068.6,2067.3,0.94586274]
[1773322549752,0.72899381,2068.6,2067.3,0.70240274]
[1773322549954,0.72899381,2068.6,2066.9,0.24666747]
[1773322550149,0.72899381,2068.6,2067.0,0.70240274]
[1773322550453,0.70469394,2068.4,2067.0,0.70240274]
[1773322551055,0.70469394,2068.4,2067.0,0.94598274]
[1773322551350,0.70469394,2068.4,2067.6,0.73124522]
[1773322551551,0.71031869,2068.6,2067.6,0.73124522]
[1773322551752,0.71031869,2068.6,2067.7,0.73124522]
[1773322552451,0.71031869,2068.6,2067.7,0.97365522]
[1773322552656,0.71031869,2068.6,2067.8,0.98086522]
[1773322552956,10.154,2070.2,2067.8,0.98086522]
[1773322552957,0.70469394,2069.5,2068.2,0.73124522]
[1773322553348,0.70469394,2069.5,2068.4,0.98438522]
[1773322553650,0.70469394,2069.5,2068.1,0.24173]
[1773322553651,0.70469394,2069.5,2068.6,0.98443522]
[1773322553850,0.70911708,2069.5,2068.6,0.73581727]
[1773322554955,0.70911708,2069.5,2068.6,0.97889727]
[1773322555256,0.00442314,2069.5,2068.7,0.97801522]
[1773322555458,0.00442314,2069.5,2068.8,0.98147522]
[1773322555657,0.00442314,2069.5,2068.8,0.73124522]
[1773322555951,0.70469394,2069.8,2068.8,0.73124522]
[1773322556153,0.70469394,2070.3,2068.8,0.73124522]
[1773322556360,0.70469394,2070.2,2068.7,0.73124522]
[1773322556553,0.70469394,2069.7,2068.6,0.00457205]
[1773322556756,0.70469394,2069.7,2068.6,0.73581727]
[1773322556951,0.00440226,2069.7,2068.8,0.73124522]
[1773322557355,0.7090962,2069.7,2068.8,0.73124522]
[1773322558563,0.70469394,2070.3,2069.2,0.73124522]
[1773322559458,0.70469394,2070.6,2069.6,0.73124522]
[1773322559657,0.00441287,2070.3,2069.6,0.73124522]
[1773322559956,0.70910681,2070.3,2069.3,0.73124522]
[1773322560155,0.70910681,2070.3,2068.7,0.73124522]
[1773322560361,0.70910681,2070.3,2068.9,0.73124522]
[1773322561253,0.70910681,2070.3,2069.1,0.73124522]
[1773322561962,0.70469394,2069.9,2068.7,0.73124522]
[1773322562160,0.70469394,2069.7,2068.6,0.00457205]
[1773322562865,0.70469394,2069.7,2068.6,0.73581727]
[1773322563257,0.70469394,2069.7,2068.6,0.00457205]
[1773322563662,0.70469394,2070.1,2068.8,0.73124522]
[1773322564157,0.70469394,2070.1,2069.0,0.73124522]
[1773322564363,0.70469394,2070.2,2068.9,0.73124522]
[1773322564561,0.70469394,2070.2,2069.1,0.73124522]
[1773322565466,0.70469394,2070.2,2069.3,0.73124522]
[1773322565664,0.00441287,2070.3,2069.5,0.73124522]
[1773322566061,0.70910681,2070.3,2069.0,0.73124522]
[1773322566757,0.70910681,2070.3,2069.2,0.73124522]
[1773322566960,0.00441287,2070.3,2069.2,0.73124522]
[1773322567360,0.00441287,2070.3,2069.4,0.73124522]
[1773322567963,0.70910681,2070.3,2068.9,0.73124522]
[1773322568161,0.70910681,2070.3,2069.1,0.73124522]
[1773322568764,0.70469394,2070.2,2068.8,0.73124522]
[1773322569067,0.70469394,2070.2,2069.1,0.73124522]
[1773322569362,0.70469394,2070.0,2068.8,0.73124522]
[1773322569666,0.70469394,2069.8,2068.8,0.73124522]
[1773322570263,0.70469394,2069.8,2068.6,0.00457205]
[1773322570461,0.70469394,2069.8,2068.6,0.73581727]
[1773322570658,0.70469394,2069.2,2068.0,0.73124522]
[1773322570959,0.70469394,2069.2,2066.7,5.95041]
[1773322570960,0.70469394,2069.0,2067.4,0.73124522]
[1773322571163,0.70469394,2068.8,2067.4,0.73124522]
[1773322571463,0.70469394,2068.7,2067.4,0.73124522]
[1773322571658,0.70469394,2068.5,2067.4,0.73676038]
[1773322571862,0.70469394,2068.5,2067.4,0.00551516]
[1773322572163,0.24169,2068.4,2067.4,0.00551516]
[1773322572360,0.24169,2068.4,2066.8,0.73124522]
[1773322572361,0.70469394,2068.3,2066.8,0.73124522]
[1773322572964,0.70469394,2068.3,2067.0,0.73124522]
[1773322573166,0.70469394,2068.3,2067.2,0.73124522]
[1773322573368,0.70469394,2068.6,2067.2,0.73524532]
[1773322573770,0.70469394,2068.6,2067.4,0.73124522]
[1773322574469,0.70469394,2068.6,2067.6,0.73124522]
[1773322574769,0.00348193,2068.7,2067.6,0.73124522]
[1773322575169,0.00348193,2068.7,2067.8,0.73124522]
[1773322575366,0.70469394,2069.6,2068.2,0.73124522]
[1773322576273,0.70990944,2069.6,2068.2,0.73124522]
[1773322577472,0.70990944,2069.6,2068.4,0.73124522]
[1773322578069,0.70469394,2069.4,2067.8,0.73124522]
[1773322578868,0.70469394,2069.3,2067.8,0.73124522]
[1773322579066,0.70469394,2069.2,2067.8,0.73124522]
[1773322579266,0.24161,2069.1,2067.8,0.73124522]
[1773322579465,0.70469394,2068.9,2067.8,0.73124522]
[1773322579667,0.70469394,2068.8,2067.8,0.73124522]
[1773322580068,0.70469394,2068.6,2067.5,0.73124522]
[1773322580463,6.63993634,2068.6,2067.5,0.73124522]
[1773322580662,4.5612859,2068.9,2067.6,0.69516961]
[1773322580868,0.68966317,2068.8,2067.6,0.69516961]
[1773322582068,5.97857626,2069.1,2068.4,17.83719]
[1773322582270,0.74844627,2071.0,2069.9,0.24152]
[1773322582478,7.63602547,2070.9,2069.9,6.18287]
[1773322582767,0.74847684,2071.3,2069.9,12.18656364]
[1773322582967,7.63602547,2071.2,2070.2,0.24148]
[1773322583274,0.74847684,2071.6,2070.5,0.24144]
[1773322583472,0.7484728,2071.9,2070.8,0.2414]
[1773322583767,0.7484728,2071.9,2070.9,0.69516961]
[1773322583966,7.63602547,2071.8,2070.9,0.69516961]
[1773322584162,7.63602547,2071.8,2070.6,7.6]
[1773322584163,0.7484728,2071.6,2070.6,0.69516961]
[1773322584366,7.63602547,2071.7,2070.6,0.69516961]
[1773322584566,0.00570187,2071.7,2070.7,0.69516961]
[1773322584773,7.64172734,2071.7,2070.7,0.69516961]
[1773322585271,7.63602547,2071.6,2070.7,0.69516961]
[1773322585468,5.00552276,2071.6,2071.0,0.69516961]
[1773322585674,0.72546068,2072.3,2071.3,0.69516961]
[1773322585868,0.72546068,2072.3,2070.8,0.24141]
[1773322586077,3.97971778,2072.2,2070.9,7.598]
[1773322586271,5.21808095,2072.2,2071.0,2.6402427]
[1773322586465,5.28213092,2072.1,2070.8,0.24141]
[1773322586668,1.30241314,2072.0,2070.9,0.12171131]
[1773322586872,1.30241314,2072.0,2070.6,7.71871131]
[1773322587071,1.30241314,2072.0,2070.7,0.12171131]
[1773322587271,0.00381523,2072.1,2070.7,0.12171131]
[1773322587272,1.30241314,2071.8,2070.7,0.12171131]
[1773322587472,3.97971778,2071.9,2070.8,0.12039308]
[1773322587873,1.30307225,2071.8,2070.8,0.12039308]
[1773322588173,1.30307225,2071.8,2070.9,7.597]
[1773322588377,1.30497986,2074.3,2073.0,0.10946628]
[1773322588572,1.30497986,2074.3,2073.1,0.14660111]
[1773322588967,1.30497986,2074.3,2072.9,0.24116]
[1773322588968,1.30497986,2074.3,2073.2,7.7355085]
[1773322589175,1.30497986,2074.3,2073.2,7.7345085]
[1773322589376,1.31000308,2074.3,2073.2,7.73894316]
[1773322589778,1.31000308,2074.3,2073.3,0.41099376]
[1773322590075,3.22e-06,2074.3,2073.7,0.41099376]
[1773322590576,3.22e-06,2074.3,2073.8,7.594]
[1773322590775,3.22e-06,2074.3,2073.7,0.41099376]
[1773322590969,3.22e-06,2074.3,2073.7,8.00499376]
[1773322591174,3.22e-06,2074.3,2073.7,0.41099376]
[1773322591378,3.22e-06,2074.3,2073.9,0.42140056]
[1773322591679,3.22e-06,2074.3,2073.6,0.41366432]
[1773322591874,3.22e-06,2074.3,2073.7,7.592]
[1773322592077,3.22e-06,2074.3,2073.5,0.24109]
[1773322592276,3.22e-06,2074.3,2073.2,0.00443466]
[1773322592277,1.27729895,2074.3,2073.2,0.00443466]
[1773322592778,1.31426051,2074.1,2073.2,7.59643466]
[1773322592979,1.31426051,2074.1,2072.5,0.33177801]
[1773322593181,1.31426051,2074.0,2072.3,0.33177801]
[1773322593389,14.65129,2074.5,2072.2,0.24124]
[1773322593390,7.42064968,2077.5,2075.9,5.92403]
[1773322593677,7.42064968,2077.5,2073.9,2.6402427]
[1773322593678,1.48010055,2079.0,2077.3,5.92025]
[1773322593873,0.74005027,2079.8,2078.2,0.69516961]
[1773322594076,0.7878675,2079.7,2078.4,0.69516961]
[1773322594278,0.74005027,2079.5,2078.0,0.69516961]
[1773322594476,0.69960731,2078.5,2076.6,0.69516961]
[1773322594982,0.69960731,2078.3,2076.8,0.69516961]
[1773322595278,0.69960731,2077.6,2075.7,0.69516961]
[1773322595579,0.69960731,2076.8,2075.7,0.00464033]
[1773322595779,0.31040731,2076.8,2075.7,0.00464033]
[1773322595983,0.31040731,2076.8,2075.4,0.69516961]
[1773322595984,0.68966317,2076.6,2075.4,0.69516961]
[1773322596475,0.7878675,2076.5,2075.4,0.69516961]
[1773322596782,0.68966317,2076.2,2074.6,0.69516961]
[1773322597079,0.68966317,2076.2,2074.7,0.69516961]
[1773322597381,0.7878675,2076.1,2074.7,0.69516961]
[1773322597681,0.7878675,2076.1,2074.6,0.00393472]
[1773322597682,0.79173109,2076.1,2074.8,0.69516961]
[1773322597876,0.68966317,2076.0,2074.8,0.69516961]
[1773322598273,0.79173109,2076.1,2074.6,0.00393472]
[1773322598274,0.68966317,2075.8,2074.6,0.00393472]
[1773322598587,0.7878675,2076.0,2074.6,0.69910433]
[1773322598777,0.00386359,2076.1,2074.6,0.69910433]
[1773322598778,0.69352676,2076.1,2074.6,0.69910433]
[1773322598977,0.83206443,2078.6,2076.6,5.92221]
[1773322599185,9.79119349,2080.7,2074.8,0.69516961]
[1773322599186,0.83206443,2080.0,2078.2,0.69516961]
[1773322599379,0.83206443,2080.0,2078.3,13.4993]
[1773322599578,0.83206443,2080.0,2078.3,7.582]
[1773322600084,0.83210824,2079.9,2078.3,0.00621947]
[1773322600281,0.83210824,2079.7,2078.3,0.00621947]
[1773322600482,0.82680985,2079.3,2077.8,0.69516961]
[1773322600684,0.82680985,2079.1,2077.8,0.69516961]
[1773322600881,0.82680985,2079.1,2077.7,0.69516961]
[1773322601075,0.82680985,2079.1,2077.8,8.27616961]
[1773322601276,0.82680985,2079.1,2077.8,0.69516961]
[1773322601586,0.82680985,2079.1,2077.9,7.579]
[1773322601782,0.82680985,2079.1,2077.8,0.69950791]
[1773322601783,0.82680985,2079.1,2077.8,0.0043383]
[1773322602484,0.82441561,2079.8,2078.0,0.69516961]
[1773322602681,0.82441561,2080.3,2078.8,0.93564961]
[1773322602880,0.82965993,2080.0,2078.4,0.69516961]
[1773322603083,1.55379592,2079.4,2077.9,1.4684183]
[1773322603276,1.55379592,2079.2,2077.9,1.4684183]
[1773322604285,1.55379592,2079.2,2078.0,1.4684183]
[1773322604689,1.55379592,2079.6,2078.1,1.4684183]
[1773322605381,1.55379592,2079.4,2078.1,1.4684183]
[1773322606088,1.55379592,2079.4,2077.2,0.24066]
[1773322606089,1.55379592,2079.2,2077.8,1.4727566]
[1773322606382,1.55379592,2079.2,2077.8,0.0043383]
[1773322606578,1.55379592,2079.0,2077.8,0.0043383]
[1773322606778,1.55379592,2078.8,2077.8,0.0043383]
[1773322607088,1.55379592,2078.2,2076.9,1.4684183]
[1773322607477,1.55379592,2078.2,2076.5,1.4684183]
[1773322608079,1.5586393,2078.2,2076.5,1.47365045]
[1773322608884,1.55379592,2077.8,2076.5,0.00523215]
[1773322609084,1.55379592,2077.0,2075.6,1.4684183]
[1773322609284,1.55379592,2076.8,2074.9,1.4684183]
[1773322609581,1.79450592,2076.8,2074.9,1.4684183]
[1773322609785,1.55379592,2081.4,2079.2,7.20008828]
[1773322609984,1.55379592,2080.9,2079.3,1.28524828]
[1773322610178,2.6402427,2081.0,2079.1,5.91513]
[1773322610179,1.55379592,2080.5,2079.1,5.91513]
[1773322610380,1.55379592,2080.5,2079.1,1.35318055]
[1773322610782,1.53114718,2080.4,2079.1,1.35318055]
[1773322611084,7.44399718,2079.9,2079.1,0.00579043]
[1773322611283,1.53114718,2079.9,2079.1,0.00579043]
[1773322611882,1.53114718,2079.8,2078.7,1.39311078]
[1773322612086,1.53114718,2079.8,2078.1,1.38651741]
[1773322612882,1.53114718,2079.8,2078.1,1.39236949]
[1773322614189,1.53114718,2079.4,2078.1,1.39236949]
[1773322615489,1.53114718,2078.7,2078.1,0.00585208]
[1773322615688,1.53114718,2078.3,2077.2,1.4335222]
[1773322615889,1.53114718,2078.1,2076.4,1.42670192]
[1773322616083,1.53114718,2077.9,2076.4,1.42670192]
[1773322616289,1.53114718,2077.8,2076.4,1.42670192]
[1773322616480,1.53114718,2077.7,2076.4,1.42670192]
[1773322616686,1.53114718,2077.5,2076.4,0.00492673]
[1773322616880,1.59573047,2077.2,2076.4,0.00492673]
[1773322617080,1.60196817,2077.2,2076.4,0.00492673]
[1773322617280,1.60196817,2077.2,2075.8,0.03196299]
[1773322618087,1.59610781,2076.9,2075.4,0.12499072]
[1773322618289,1.59610781,2076.9,2075.4,0.12897375]
[1773322618488,10.52286922,2076.8,2075.4,0.12897375]
[1773322618689,1.59486922,2076.7,2075.4,0.12897375]
[1773322620191,1.59519843,2076.5,2075.4,0.00398303]
[1773322620391,1.58314558,2077.1,2075.4,0.11900756]
[1773322620592,1.58314558,2076.9,2075.4,0.11900756]
[1773322620791,1.58314558,2076.7,2075.4,0.00398303]
[1773322621094,1.58314558,2076.3,2075.4,0.00398303]
[1773322621295,2.6402427,2076.5,2075.4,0.00398303]
[1773322621296,1.58314558,2076.1,2075.4,0.00398303]
[1773322621495,1.58314558,2076.1,2074.6,0.1330496]
[1773322621796,1.58314558,2076.1,2074.7,5.9752329]
[1773322621997,1.82432861,2076.0,2074.4,0.12623134]
[1773322622192,1.82432861,2076.0,2074.5,5.97926853]
[1773322622500,1.82432861,2076.0,2074.5,0.1316723]
[1773322622698,10.55881341,2075.9,2074.6,6.03357599]
[1773322622889,1.61581341,2075.8,2074.6,0.05582817]
[1773322623197,1.61581341,2075.8,2074.5,0.00544096]
[1773322623389,1.61581341,2075.8,2074.6,5.99097313]
[1773322623596,1.61581341,2075.8,2074.7,6.04009945]
[1773322623893,1.61611371,2076.2,2074.8,5.99097313]
[1773322624094,1.61611371,2076.2,2074.6,0.04912632]
[1773322624296,1.61611371,2076.0,2074.7,5.9878383]
[1773322624494,1.61611371,2076.0,2074.5,0.00544096]
[1773322624495,1.62099167,2075.6,2074.5,0.00544096]
[1773322624794,1.62099167,2075.0,2073.4,3.79807272]
[1773322625002,1.62099167,2074.7,2073.1,0.03325897]
[1773322625199,1.62099167,2074.5,2072.7,3.83133169]
[1773322625500,1.62099167,2074.5,2072.8,5.98001205]
[1773322625698,5.92773,2074.7,2072.9,5.95310081]
[1773322625699,1.86228885,2074.4,2072.9,5.95310081]
[1773322626002,1.62129885,2074.2,2072.9,5.98001205]
[1773322626196,1.62129885,2074.0,2072.8,0.00490171]
[1773322626395,1.62548406,2074.0,2072.8,0.00490171]
[1773322626596,4.26572676,2074.0,2072.8,0.00490171]
[1773322626892,1.60175399,2073.9,2072.8,0.00490171]
[1773322627093,1.59930314,2073.5,2071.8,0.05988007]
[1773322628201,1.59930314,2073.5,2071.8,0.06594392]
[1773322628796,1.59930314,2073.5,2071.8,0.00606385]
[1773322628797,1.59886509,2073.4,2071.8,0.00606385]
[1773322629002,1.59886509,2073.4,2071.3,2.85576917]
[1773322629300,1.59886509,2073.4,2071.7,6.17751]
[1773322629698,1.59886509,2073.4,2071.3,40.8]
[1773322629895,1.62606948,2073.2,2071.2,2.6402427]
[1773322630100,1.62606948,2072.8,2071.2,0.00471739]
[1773322630295,1.62606948,2072.6,2071.2,0.00471739]
[1773322630998,1.62110195,2072.4,2071.2,0.00471739]
[1773322631202,1.62459708,2072.4,2071.2,0.00471739]
[1773322631395,1.62459708,2072.4,2071.3,0.00303111]
[1773322631396,0.00349513,2072.4,2071.3,0.00303111]
[1773322632298,1.62110955,2073.0,2071.6,0.24131]
[1773322632700,1.61966986,2074.2,2072.0,6.17662]
[1773322632996,5.92753,2074.8,2072.6,0.2412]
[1773322632997,1.61966986,2074.0,2072.6,0.2412]
[1773322633191,1.61966986,2073.8,2072.6,0.2412]
[1773322633600,1.61966986,2073.8,2072.3,2.6402427]
[1773322633801,1.61966986,2073.8,2072.4,5.93425]
[1773322634004,1.62498594,2074.0,2072.7,0.24119]
[1773322634200,1.62498594,2074.0,2072.7,0.24679859]
[1773322634699,0.00495453,2074.0,2072.9,5.93274]
[1773322634900,0.00495453,2074.0,2073.0,0.24115]
[1773322635099,0.00495453,2074.0,2073.1,2.6402427]
[1773322635301,10.12,2076.4,2073.0,6.17367]
[1773322635302,1.62399479,2074.7,2073.5,2.8813327]
[1773322635495,1.62399479,2074.7,2072.9,6.1739]
[1773322635702,1.62399479,2074.7,2073.2,6.17301]
[1773322636408,0.00482904,2074.7,2073.7,6.17152]
[1773322636605,1.64237474,2075.5,2073.9,0.24105]
[1773322636905,1.64237474,2075.5,2073.9,6.17097]
[1773322637106,1.64237474,2075.5,2073.9,0.24105]
[1773322637702,1.64847519,2075.5,2073.9,0.24105]
[1773322638105,1.6427523,2075.3,2073.9,0.24105]
[1773322638800,1.6427523,2075.3,2073.9,6.17087]
[1773322639008,0.00610045,2075.5,2074.6,8.8090527]
[1773322639299,0.00610045,2075.5,2074.6,0.24536608]
[1773322639501,1.65014671,2075.7,2074.6,0.24536608]
[1773322640302,1.65014671,2075.7,2074.6,0.00440608]
[1773322640504,1.6551419,2075.7,2074.7,0.24096]
[1773322640803,1.6551419,2075.7,2074.6,0.00440608]
[1773322640999,1.6551419,2075.7,2074.6,0.24536608]
[1773322642200,0.00499519,2075.7,2075.1,0.2409]
[1773322642401,0.00499519,2075.7,2074.6,2.64464878]
[1773322642402,1.6897385,2075.7,2074.6,2.64464878]
[1773322642605,1.6897385,2075.7,2074.6,0.00440608]
[1773322642898,1.6897385,2075.7,2074.6,0.24594608]
[1773322643099,1.6897385,2075.7,2074.7,0.48416]
[1773322643306,1.6897385,2075.7,2074.6,0.00440608]
[1773322643506,1.6897385,2075.7,2074.1,0.24102]
[1773322643701,1.6897385,2075.7,2073.6,7.578]
[1773322643702,1.68283885,2075.5,2073.6,7.578]
[1773322643907,1.68283885,2075.5,2073.7,12.10851548]
[1773322644097,1.68283885,2075.5,2073.7,6.4162]
[1773322644299,1.68283885,2075.5,2073.9,0.24105]
[1773322644498,1.68283885,2075.5,2073.9,0.48668869]
[1773322644704,1.69619905,2075.4,2073.9,0.24562869]
[1773322644905,1.69619905,2075.4,2073.9,0.00457869]
[1773322645807,1.69645407,2075.2,2074.0,0.24104]
[1773322646110,1.69645407,2075.2,2074.0,6.17069]
[1773322646402,1.69645407,2075.6,2074.1,9.526709]
[1773322646610,1.69645407,2075.6,2074.5,0.24098]
[1773322647007,1.69645407,2075.6,2074.0,3.79807272]
[1773322647205,1.69645407,2075.6,2074.1,4.03910272]
[1773322647408,1.69645407,2075.6,2074.2,5.72853241]
[1773322647805,1.69645407,2075.6,2074.1,0.24103]
[1773322648110,1.69645407,2075.6,2074.2,5.7341467]
[1773322648315,7.86248407,2075.6,2073.9,0.00457869]
[1773322648610,1.7005766,2074.9,2073.3,3.79807272]
[1773322648810,1.69828725,2074.7,2073.4,5.74237161]
[1773322649007,1.69828725,2074.5,2072.9,3.79807272]
[1773322649207,1.69828725,2074.5,2073.0,5.74361595]
[1773322649404,1.69828725,2074.3,2073.1,5.74361595]
[1773322649611,1.69828725,2074.3,2073.1,0.00546908]
[1773322650111,14.78743,2074.8,2072.7,3.79807272]
[1773322650112,1.69854371,2074.1,2072.7,3.79807272]
[1773322650301,1.69854371,2074.1,2072.3,3.79807272]
[1773322650708,1.67766218,2073.9,2072.4,5.74059381]
[1773322651114,1.67766218,2073.9,2072.5,0.24121]
[1773322651307,1.68392874,2073.9,2072.6,5.74059381]
[1773322653215,1.68392874,2073.9,2072.5,0.2473967]
[1773322653413,1.68392874,2073.9,2072.7,6.1744]
[1773322653621,1.68392874,2073.9,2072.9,0.24117]
[1773322653914,1.68392874,2073.9,2073.0,5.7427946]
[1773322654118,1.68392874,2073.9,2073.1,5.9839346]
[1773322654318,1.68392874,2073.9,2073.1,0.24114]
[1773322654615,0.00626656,2073.9,2073.2,5.74133229]
[1773322654817,1.67852882,2075.0,2073.7,0.24106]
[1773322655323,1.67852882,2075.0,2073.9,0.24105]
[1773322655617,1.67852882,2075.0,2074.0,5.73748964]
[1773322655814,1.68280226,2075.0,2074.0,0.00557703]
[1773322656214,1.68280226,2075.0,2073.5,3.95012012]
[1773322656412,1.68280226,2075.0,2073.6,5.73464563]
[1773322656618,1.68280226,2075.0,2073.7,5.73464563]
[1773322656810,1.68280226,2075.0,2073.3,10.12289012]
[1773322657015,1.92373226,2075.0,2073.4,5.73610381]
[1773322657213,1.92373226,2075.0,2073.4,0.00616063]
[1773322657610,1.92373226,2075.0,2073.5,5.73916746]
[1773322657809,1.92373226,2075.0,2073.4,0.00616063]
[1773322658215,7.85059226,2075.0,2073.4,0.00616063]
[1773322658414,1.74934102,2074.2,2072.8,3.95012012]
[1773322658625,1.778289,2074.0,2072.9,5.74736866]
[1773322658816,1.778289,2074.0,2073.0,5.74736866]
[1773322659015,1.778289,2074.0,2072.7,4.19130012]
[1773322659212,1.778289,2073.8,2072.4,3.95012012]
[1773322659410,1.778289,2073.8,2072.5,5.75233446]
[1773322659620,1.778289,2073.8,2072.4,0.00515027]
[1773322661322,1.778289,2073.8,2072.5,6.00091402]
[1773322661512,1.778289,2073.8,2072.5,0.24121]
[1773322662420,1.7714795,2073.6,2072.5,0.24121]
[1773322662617,1.7714795,2073.6,2072.7,0.24119]
[1773322662818,1.7714795,2073.6,2072.8,5.76011438]
[1773322663019,1.7714795,2073.6,2072.4,3.95527039]
[1773322663216,1.7714795,2073.6,2072.5,5.75928909]
[1773322663418,1.7714795,2073.6,2072.4,0.00515027]
[1773322663922,1.447231,2073.4,2072.5,0.24121]
[1773322664117,1.45224602,2073.4,2072.5,0.24121]
[1773322665523,1.45224602,2073.4,2072.4,0.00515027]
[1773322666519,1.45224602,2073.4,2071.4,3.95012012]
[1773322666520,0.24117,2072.9,2071.4,3.95012012]
[1773322666719,1.447231,2072.7,2071.0,4.19151012]
[1773322667022,1.447231,2072.5,2070.8,3.95012012]
[1773322667222,1.447231,2072.5,2070.8,0.24141]
[1773322667423,1.447231,2072.5,2070.8,0.2469799]
[1773322667615,1.447231,2072.3,2070.8,4.54003095]
[1773322668122,1.447231,2072.1,2070.8,0.2469799]
[1773322668322,1.447231,2072.1,2071.1,0.34293093]
[1773322668717,1.447231,2072.1,2070.8,0.0055699]
[1773322669122,1.447231,2072.1,2070.9,0.2414]
[1773322670418,1.447231,2072.1,2070.8,0.0055699]
[1773322672828,1.447231,2072.1,2070.8,0.2469799]
[1773322673428,1.39782656,2071.9,2070.8,0.2469799]
[1773322673731,0.00399345,2071.9,2071.3,0.24135]
[1773322673925,1.39782656,2072.1,2071.3,0.24135]
[1773322674326,10.15582656,2072.4,2071.5,0.24133]
[1773322674526,1.39782656,2072.3,2071.5,0.24133]
[1773322674927,1.40185244,2072.3,2071.1,0.49125042]
[1773322675127,1.40185244,2072.3,2071.0,0.24138]
[1773322676330,1.40185244,2072.3,2071.0,6.17957]
[1773322676532,1.40185244,2072.3,2071.0,0.74281545]
[1773322677328,1.40185244,2072.3,2071.0,0.24138]
[1773322678239,1.39782656,2072.1,2071.2,0.48373]
[1773322678536,1.39782656,2072.1,2071.2,0.24136]
[1773322678740,1.39782656,2072.1,2071.2,0.48457]
[1773322679431,0.00402588,2072.3,2071.6,0.24131]
[1773322679635,1.40185244,2072.3,2071.6,0.24131]
[1773322679938,1.40185244,2072.3,2071.6,0.50167]
[1773322680144,1.40185244,2072.3,2071.6,0.24131]
[1773322680334,1.40185244,2072.3,2071.1,1.19517827]
[1773322680535,1.40185244,2072.3,2071.5,0.24133]
[1773322680735,1.40185244,2072.3,2071.5,0.50389]
[1773322681135,1.40185244,2072.3,2071.5,0.24133]
[1773322681445,1.40185244,2072.3,2071.0,0.48371]
[1773322681740,1.40185244,2072.3,2071.1,5.74776052]
[1773322681939,1.40185244,2072.3,2071.0,0.24138]
[1773322681940,1.40185244,2072.3,2071.2,6.72490501]
[1773322682136,1.40185244,2072.3,2071.4,1.21831449]